lending/lending_fUSD_20251018
["ID","MTS","AMOUNT","RATE_DAILY","PERIOD"]
[391788255,1760818235543,-76.90394104,0.00017351,2]
[391788256,1760818235552,-151.0,0.00017351,2]
[391788257,1760818235561,-151.0,0.00017351,2]
[391788258,1760818235569,-151.0,0.00017351,2]
[391788259,1760818235578,-300.0,0.00017421,2]
[391788260,1760818235592,-2500.0,0.00017421,2]
[391788261,1760818235601,-500.0,0.00017421,2]
[391788263,1760818235610,-358.86251167,0.00017421,2]
[391788265,1760818235620,-300.0,0.00017421,2]
[391788267,1760818235629,-218.83354729,0.00017421,2]
[391788381,1760818237765,-31.16645271,0.00017421,2]
[391788382,1760818237775,-300.0,0.00017421,2]
[391788383,1760818237784,-268.11450719,0.00017534,2]
[391788384,1760818237793,-456.59,0.00018038,2]
[391788385,1760818237803,-144.1290401,0.00018193,2]
[391788400,1760818239810,-275.8709599,0.00018193,2]
[391788401,1760818239820,-1680.0,0.00018284,2]
[391788402,1760818239829,-90.56137358,0.00018858,2]
[391788403,1760818239840,-366.02862642,0.00018858,2]
[391788404,1760818239849,-101.42927373,0.00019677,2]
[391788405,1760818239867,-355.16072627,0.00019677,2]
[391788406,1760818239877,-171.38,0.0001975,2]
[391788407,1760818239887,-480.0,0.00020077,2]
[391788408,1760818239897,-456.59,0.00020497,2]
[391788409,1760818239906,-456.59,0.00021317,2]
[391788410,1760818239915,-456.59,0.00022137,2]
[391788411,1760818239924,-456.59,0.00022957,2]
[391788412,1760818239933,-456.59,0.00023777,2]
[391788413,1760818239943,-1570.0,0.00023777,2]
[391788414,1760818239952,-150.07,0.00024333,2]
[391788415,1760818239961,-497.71,0.00024519,2]
[391788416,1760818239971,-154.76,0.00024552,30]
[391788417,1760818239980,-456.59,0.00024597,2]
[391788418,1760818239989,-475.74147678,0.0002473,2]
[391788419,1760818239999,-500.0,0.00024932,2]
[391788420,1760818240008,-456.59,0.00025417,2]
[391788421,1760818240018,-456.59,0.00026237,2]
[391788422,1760818240029,-250.0,0.00026692,2]
[391788423,1760818240041,-646.724,0.00026883,14]
[391788424,1760818240051,-456.59,0.00027056,2]
[391788425,1760818240060,-1300.91481299,0.00027075,4]
[391788426,1760818240069,-1300.91481299,0.00027075,4]
[391788427,1760818240078,-1000.0,0.00027792,2]
[391788428,1760818240087,-456.59,0.00027876,2]
[391788429,1760818240096,-500.0,0.00027927,2]
[391788430,1760818240105,-200.0,0.00027946,2]
[391788431,1760818240115,-7300.55,0.00028119,2]
[391788432,1760818240126,-271.99,0.00028361,2]
[391788433,1760818240138,-160.0,0.00028653,2]
[391788434,1760818240148,-456.59,0.00028696,2]
[391788436,1760818240158,-1999.99,0.00029,2]
[391788438,1760818240167,-2007.51,0.00029,2]
[391788439,1760818240177,-1999.99,0.00029,2]
[391788440,1760818240186,-2000.0,0.00029,2]
[391788441,1760818240197,-2000.0,0.00029,2]
[391788442,1760818240211,-2000.01,0.00029,2]
[391788443,1760818240221,-200.0,0.00029052,2]
[391788444,1760818240231,-1007.60293934,0.00029425,2]
[391788445,1760818240240,-300.0,0.00029494,42]
[391788446,1760818240250,-456.59,0.00029516,2]
[391788447,1760818240260,-150.0,0.00029601,2]
[391788448,1760818240274,-456.59,0.00030336,2]
[391788449,1760818240284,-1059.65086444,0.00030686,30]
[391788450,1760818240293,-8872.18085391,0.00030762,2]
[391788451,1760818240303,-600.0,0.00030807,2]
[391788452,1760818240313,-9552.16786547,0.00030807,2]
[391788453,1760818240323,-3000.0,0.00030807,2]
[391788454,1760818240333,-3000.0,0.00030807,2]
[391788455,1760818240345,-1000.0,0.00030807,2]
[391788456,1760818240355,-1000.0,0.00030807,2]
[391788457,1760818240364,-750.0,0.00030807,2]
[391788458,1760818240378,-277.35679052,0.00030807,2]
[391788459,1760818240388,-250.0,0.00030807,2]
[391788460,1760818240398,-151.0,0.00030807,2]
[391788461,1760818240407,-250.0,0.00030807,2]
[391788462,1760818240416,-151.0,0.00030807,2]
[391788463,1760818240426,-250.0,0.00030807,2]
[391788464,1760818240435,-151.0,0.00030807,2]
[391788465,1760818240445,-250.0,0.00030807,2]
[391788466,1760818240454,-151.0,0.00030807,2]
[391788467,1760818240464,-250.0,0.00030807,2]
[391788468,1760818240474,-296.0,0.00030807,2]
[391788469,1760818240483,-250.0,0.00030807,2]
[391788470,1760818240493,-250.0,0.00030807,2]
[391788471,1760818240504,-1000.0,0.00030807,2]
[391788472,1760818240513,-250.0,0.00030807,2]
[391788473,1760818240523,-1000.0,0.00030807,2]
[391788474,1760818240532,-250.0,0.00030807,2]
[391788475,1760818240544,-1000.0,0.00030807,2]
[391788476,1760818240554,-250.0,0.00030807,2]
[391788477,1760818240563,-1000.0,0.00030807,2]
[391788478,1760818240573,-250.0,0.00030807,2]
[391788479,1760818240582,-1000.0,0.00030807,2]
[391788480,1760818240592,-1000.0,0.00030807,2]
[391788481,1760818240601,-1000.0,0.00030807,2]
[391788482,1760818240611,-1000.0,0.00030807,2]
[391788483,1760818240620,-1000.0,0.00030807,2]
[391788484,1760818240630,-1000.0,0.00030807,2]
[391788485,1760818240640,-1000.0,0.00030807,2]
[391788486,1760818240649,-1000.0,0.00030807,2]
[391788487,1760818240659,-1000.0,0.00030807,2]
[391788488,1760818240670,-1000.0,0.00030807,2]
[391788489,1760818240679,-1000.0,0.00030807,2]
[391788490,1760818240688,-1000.0,0.00030807,2]
[391788491,1760818240698,-1000.0,0.00030807,2]
[391788492,1760818240709,-1000.0,0.00030807,2]
[391788493,1760818240719,-250.0,0.00030807,2]
[391788494,1760818240728,-1000.0,0.00030807,2]
[391788495,1760818240737,-250.0,0.00030807,2]
[391788496,1760818240746,-1000.0,0.00030807,2]
[391788497,1760818240755,-250.0,0.00030807,2]
[391788498,1760818240764,-871.48857578,0.00030807,2]
[391788499,1760818240773,-250.0,0.00030807,2]
[391788500,1760818240782,-250.0,0.00030807,2]
[391788501,1760818240792,-250.0,0.00030807,2]
[391788502,1760818240801,-250.0,0.00030807,2]
[391788503,1760818240811,-250.0,0.00030807,2]
[391788504,1760818240820,-250.0,0.00030807,2]
[391788505,1760818240831,-250.0,0.00030807,2]
[391788506,1760818240841,-250.0,0.00030807,2]
[391788507,1760818240850,-174.19,0.00030807,7]
[391788508,1760818240860,-402.31,0.00030852,3]
[391788509,1760818240869,-114571.11021762,0.00030862,2]
[391788510,1760818240878,-9905.5980765,0.00030862,2]
[391788511,1760818240889,-500.0,0.00030873,5]
[391788512,1760818240899,-500.0,0.00030873,5]
[391788513,1760818240908,-500.0,0.00030873,5]
[391788514,1760818240918,-500.0,0.00030873,2]
[391788515,1760818240931,-500.0,0.00030873,5]
[391788516,1760818240941,-500.0,0.00030873,5]
[391788517,1760818240952,-500.0,0.00030873,5]
[391788518,1760818240962,-500.0,0.00030873,5]
[391788519,1760818240971,-10272.10520533,0.00030917,2]
[391788520,1760818240980,-8872.18085391,0.00030951,2]
[391788521,1760818240990,-1727.10333896,0.00030972,2]
[391788522,1760818240999,-4754.14,0.00030999,2]
[391788523,1760818241010,-500.0,0.00030999,2]
[391788524,1760818241020,-500.0,0.00030999,2]
[391788525,1760818241030,-500.0,0.00030999,2]
[391788526,1760818241039,-500.0,0.00030999,2]
[391788527,1760818241049,-500.0,0.00030999,2]
[391788528,1760818241059,-500.0,0.00030999,2]
[391788529,1760818241068,-547.57,0.00030999,2]
[391788530,1760818241078,-500.0,0.00030999,2]
[391788531,1760818241087,-598.96414282,0.00030999,2]
[391788532,1760818241098,-500.0,0.00030999,2]
[391788533,1760818241107,-580.37,0.00030999,2]
[391788534,1760818241118,-500.0,0.00030999,2]
[391788535,1760818241128,-501.13735877,0.00030999,2]
[391788536,1760818241139,-504.80549254,0.00030999,2]
[391788537,1760818241148,-500.0,0.00030999,2]
[391788538,1760818241157,-500.0,0.00030999,2]
[391788539,1760818241167,-512.99846776,0.00030999,2]
[391788540,1760818241176,-1113.0,0.00031,9]
[391788541,1760818241186,-1000.0,0.00031,9]
[391788542,1760818241195,-174.19,0.00031081,7]
[391788543,1760818241205,-8872.18085391,0.0003114,2]
[391788544,1760818241214,-500.0,0.00031145,7]
[391788545,1760818241224,-456.59,0.00031156,2]
[391788546,1760818241233,-1000.0,0.00031266,2]
[391788547,1760818241243,-4754.14,0.00031273,2]
[391788548,1760818241253,-547.57,0.00031273,2]
[391788549,1760818241264,-204.88,0.00031273,2]
[391788550,1760818241276,-8872.18085391,0.0003133,2]
[391788551,1760818241286,-1000.0,0.00031421,5]
[391788552,1760818241296,-1000.0,0.00031421,5]
[391788553,1760818241311,-196.87269476,0.00031421,5]
[391788554,1760818241320,-500.0,0.00031421,5]
[391788555,1760818241330,-168.0,0.00031507,2]
[391788556,1760818241341,-958.45536607,0.00031525,2]
[391788557,1760818241351,-500.0,0.00031537,2]
[391788558,1760818241360,-445.28596663,0.00031537,2]
[391788559,1760818241369,-500.0,0.00031537,2]
[391788560,1760818241379,-500.0,0.00031537,2]
[391788561,1760818241388,-500.0,0.00031537,2]
[391788562,1760818241397,-205.20049943,0.00031537,2]
[391788563,1760818241407,-500.0,0.00031537,2]
[391788564,1760818241416,-557.82261993,0.00031537,2]
[391788565,1760818241425,-500.0,0.00031537,2]
[391788566,1760818241434,-500.0,0.00031537,2]
[391788567,1760818241443,-500.0,0.00031537,2]
[391788568,1760818241452,-3080.34,0.00031537,2]
[391788569,1760818241461,-218.0,0.00031538,2]
[391788570,1760818241470,-4754.14,0.00031547,2]
[391788571,1760818241481,-547.57,0.00031547,2]
[391788572,1760818241490,-218.0,0.00031555,2]
[391788573,1760818241501,-174.83,0.00031578,2]
[391788574,1760818241510,-1199.33,0.00031578,2]
[391788575,1760818241520,-2397.99,0.00031589,2]
[391788576,1760818241529,-162.48322155,0.00031811,2]
[391788577,1760818241539,-269.11326598,0.00031811,2]
[391788578,1760818241548,-500.0,0.00031811,2]
[391788579,1760818241558,-500.0,0.00031811,2]
[391788580,1760818241568,-500.0,0.00031811,2]
[391788581,1760818241577,-500.0,0.00031811,2]
[391788582,1760818241586,-3080.34,0.00031811,2]
[391788583,1760818241595,-4754.14,0.00031821,2]
[391788584,1760818241605,-547.57,0.00031821,2]
[391788585,1760818241614,-1000.0,0.000319,2]
[391788586,1760818241623,-218.0,0.00031921,2]
[391788587,1760818241632,-1000.0,0.00031968,5]
[391788588,1760818241642,-1500.0,0.00031968,5]
[391788589,1760818241651,-4560.35419235,0.00031991,2]
[391788590,1760818241660,-1000.0,0.00032,12]
[391788591,1760818241670,-1000.0,0.00032,12]
[391788592,1760818241679,-1000.0,0.00032,12]
[391788593,1760818241691,-1000.0,0.00032,12]
[391788594,1760818241699,-1000.0,0.00032,11]
[391788595,1760818241709,-1000.0,0.00032,11]
[391788596,1760818241718,-785.0,0.00032,10]
[391788597,1760818241727,-1000.0,0.00032,9]
[391788598,1760818241736,-1000.0,0.00032,9]
[391788599,1760818241746,-1000.0,0.00032,9]
[391788600,1760818241755,-1000.0,0.00032,9]
[391788601,1760818241764,-1000.0,0.00032,9]
[391788602,1760818241774,-1000.0,0.00032,15]
[391788603,1760818241783,-218.0,0.00032053,7]
[391788604,1760818241792,-362.78215198,0.0003208,2]
[391788605,1760818241802,-3125.32365,0.0003208,2]
[391788606,1760818241811,-500.0,0.00032085,2]
[391788607,1760818241820,-500.0,0.00032085,2]
[391788608,1760818241830,-500.0,0.00032085,2]
[391788609,1760818241840,-500.0,0.00032085,2]
[391788610,1760818241849,-3080.34,0.00032085,2]
[391788611,1760818241859,-4754.14,0.00032095,2]
[391788612,1760818241869,-547.57,0.00032095,2]
[391788613,1760818241878,-5526.20234134,0.000321,2]
[391788614,1760818241888,-362.78215193,0.00032135,2]
[391788615,1760818241897,-200.0,0.0003219,2]
[391788616,1760818241907,-362.78215193,0.0003219,2]
[391788617,1760818241916,-212.63058856,0.00032217,15]
[391788618,1760818241925,-212.63058853,0.00032245,15]
[391788619,1760818241934,-362.78215193,0.00032245,2]
[391788620,1760818241943,-212.63058853,0.00032272,15]
[391788621,1760818241953,-183.59081421,0.00032299,2]
[391788622,1760818241962,-500.0,0.00032299,2]
[391788623,1760818241971,-212.63058853,0.000323,15]
[391788624,1760818241980,-173.33297034,0.000323,2]
[391788625,1760818241989,-5000.0,0.000323,2]
[391788626,1760818241999,-362.78215193,0.000323,2]
[391788627,1760818242008,-212.63058853,0.00032327,15]
[391788628,1760818242018,-173.33297033,0.00032341,2]
[391788629,1760818242026,-212.63058853,0.00032355,15]
[391788630,1760818242036,-362.78215193,0.00032355,2]
[391788631,1760818242045,-964.83589814,0.00032355,2]
[391788632,1760818242054,-500.0,0.00032359,2]
[391788633,1760818242064,-500.0,0.00032359,2]
[391788634,1760818242073,-500.0,0.00032359,2]
[391788635,1760818242082,-500.0,0.00032359,2]
[391788636,1760818242091,-3080.34,0.00032359,2]
[391788637,1760818242100,-1687.0,0.00032366,5]
[391788638,1760818242110,-4754.14,0.00032369,2]
[391788639,1760818242119,-547.57,0.00032369,2]
[391788640,1760818242129,-300.0,0.0003237,30]
[391788641,1760818242138,-300.0,0.0003237,30]
[391788642,1760818242147,-400.0,0.0003237,30]
[391788643,1760818242157,-500.0,0.00032371,2]
[391788644,1760818242166,-500.0,0.00032371,2]
[391788645,1760818242176,-501.15750725,0.00032371,2]
[391788646,1760818242186,-300.0,0.00032371,2]
[391788647,1760818242196,-645.1719238,0.00032371,2]
[391788648,1760818242205,-500.0,0.00032371,2]
[391788649,1760818242215,-500.0,0.00032371,2]
[391788650,1760818242224,-500.0,0.00032371,2]
[391788651,1760818242234,-500.0,0.00032371,2]
[391788652,1760818242243,-172.05515126,0.00032371,2]
[391788653,1760818242254,-500.0,0.00032371,2]
[391788654,1760818242266,-500.0,0.00032371,2]
[391788655,1760818242276,-506.64449749,0.00032371,2]
[391788656,1760818242286,-500.0,0.00032371,2]
[391788657,1760818242295,-501.34056667,0.00032371,2]
[391788658,1760818242306,-518.26253029,0.00032371,2]
[391788659,1760818242317,-500.0,0.00032371,2]
[391788660,1760818242326,-500.0,0.00032371,2]
[391788661,1760818242336,-500.0,0.00032371,2]
[391788662,1760818242348,-502.65246403,0.00032371,2]
[391788663,1760818242358,-506.65127257,0.00032371,2]
[391788664,1760818242368,-500.0,0.00032371,2]
[391788665,1760818242378,-509.1740928,0.00032371,2]
[391788666,1760818242389,-500.0,0.00032371,2]
[391788667,1760818242399,-500.0,0.00032371,2]
[391788668,1760818242408,-500.0,0.00032371,2]
[391788669,1760818242417,-500.0,0.00032371,2]
[391788670,1760818242429,-500.0,0.00032371,2]
[391788671,1760818242439,-500.0,0.00032371,2]
[391788672,1760818242449,-628.9595089,0.00032371,2]
[391788673,1760818242469,-500.0,0.00032371,2]
[391788674,1760818242479,-500.63521705,0.00032371,2]
[391788676,1760818242488,-500.0,0.00032371,2]
[391788678,1760818242498,-500.0,0.00032371,2]
[391788693,1760818242687,-500.4516645,0.00032371,2]
[391788694,1760818242698,-500.0,0.00032371,2]
[391788695,1760818242707,-500.0,0.00032371,2]
[391788696,1760818242716,-500.93354794,0.00032371,2]
[391788697,1760818242725,-500.0,0.00032371,2]
[391788698,1760818242734,-501.76004696,0.00032371,2]
[391788699,1760818242743,-500.0,0.00032371,2]
[391788700,1760818242753,-502.05664309,0.00032371,2]
[391788701,1760818242762,-500.0,0.00032371,2]
[391788702,1760818242771,-502.4496501,0.00032371,2]
[391788703,1760818242780,-500.0,0.00032371,2]
[391788704,1760818242790,-500.47552705,0.00032371,2]
[391788705,1760818242799,-501.03699169,0.00032371,2]
[391788706,1760818242808,-500.0,0.00032371,2]
[391788707,1760818242817,-502.3989694,0.00032371,2]
[391788708,1760818242826,-502.87215314,0.00032371,2]
[391788709,1760818242835,-500.0,0.00032371,2]
[391788710,1760818242844,-500.0,0.00032371,2]
[391788711,1760818242853,-500.50880022,0.00032371,2]
[391788712,1760818242862,-503.08040033,0.00032371,2]
[391788713,1760818242872,-501.10115877,0.00032371,2]
[391788714,1760818242881,-500.08745062,0.00032371,2]
[391788715,1760818242890,-502.63172109,0.00032371,2]
[391788716,1760818242899,-500.0,0.00032371,2]
[391788717,1760818242908,-505.49986797,0.00032371,2]
[391788718,1760818242917,-501.61635338,0.00032371,2]
[391788719,1760818242926,-195.37173257,0.00032371,2]
[391788720,1760818242935,-502.26290353,0.00032371,2]
[391788721,1760818242944,-500.0,0.00032371,2]
[391788722,1760818242954,-501.86177947,0.00032371,2]
[391788723,1760818242963,-585.29826703,0.00032371,2]
[391788724,1760818242972,-500.0,0.00032371,2]
[391788725,1760818242981,-500.0,0.00032371,2]
[391788726,1760818242991,-500.0,0.00032371,2]
[391788727,1760818243000,-500.0,0.00032371,2]
[391788728,1760818243009,-500.25049309,0.00032371,2]
[391788729,1760818243021,-500.58723083,0.00032371,2]
[391788730,1760818243031,-500.0,0.00032371,2]
[391788731,1760818243041,-500.0,0.00032371,2]
[391788732,1760818243050,-500.21777714,0.00032371,2]
[391788733,1760818243060,-1000.0,0.00032371,2]
[391788734,1760818243069,-500.13225498,0.00032371,2]
[391788735,1760818243079,-500.0,0.00032371,2]
[391788736,1760818243089,-500.4672899,0.00032371,2]
[391788737,1760818243098,-500.0,0.00032371,2]
[391788738,1760818243107,-500.0,0.00032371,2]
[391788739,1760818243117,-500.0,0.00032371,2]
[391788740,1760818243126,-500.0,0.00032371,2]
[391788741,1760818243137,-2225.656762,0.00032376,2]
[391788742,1760818243146,-1523.8594237,0.00032376,2]
[391788743,1760818243157,-9367.98199376,0.00032376,2]
[391788744,1760818243166,-150.00000016,0.0003238,2]
[391788745,1760818243177,-150.0,0.0003238,2]
[391788746,1760818243187,-150.0,0.0003238,2]
[391788747,1760818243196,-500.0,0.0003238,2]
[391788748,1760818243206,-500.0,0.0003238,2]
[391788749,1760818243215,-500.0,0.0003238,2]
[391788750,1760818243225,-150.0,0.0003238,2]
[391788751,1760818243234,-150.0,0.0003238,2]
[391788752,1760818243244,-250.0,0.0003238,2]
[391788753,1760818243254,-251.88543427,0.0003238,2]
[391788754,1760818243266,-150.0,0.0003238,2]
[391788755,1760818243278,-500.0,0.0003238,2]
[391788756,1760818243288,-150.0,0.0003238,2]
[391788757,1760818243298,-150.0,0.0003238,2]
[391788758,1760818243307,-150.0,0.0003238,2]
[391788759,1760818243317,-500.0,0.0003238,2]
[391788760,1760818243327,-150.0,0.0003238,2]
[391788761,1760818243337,-150.0,0.0003238,2]
[391788762,1760818243348,-251.64880541,0.0003238,2]
[391788763,1760818243357,-154.76,0.0003238,30]
[391788764,1760818243366,-212.63058853,0.00032382,15]
[391788765,1760818243376,-173.33297033,0.00032383,2]
[391788766,1760818243385,-434.89640759,0.0003239,2]
[391788767,1760818243395,-500.0,0.00032391,2]
[391788768,1760818243404,-1142.67,0.00032391,2]
[391788769,1760818243414,-500.0,0.00032391,2]
[391788770,1760818243423,-500.0,0.00032391,2]
[391788771,1760818243432,-500.0,0.00032391,2]
[391788772,1760818243442,-500.0,0.00032391,2]
[391788773,1760818243453,-1405.72,0.00032391,2]
[391788774,1760818243462,-500.0,0.00032391,2]
[391788775,1760818243471,-500.0,0.00032391,2]
[391788776,1760818243481,-500.0,0.00032391,2]
[391788777,1760818243490,-500.0,0.00032391,2]
[391788778,1760818243499,-500.0,0.00032391,2]
[391788779,1760818243508,-500.0,0.00032391,2]
[391788780,1760818243518,-500.0,0.00032391,2]
[391788781,1760818243528,-510.03783533,0.00032391,2]
[391788782,1760818243539,-500.0,0.00032391,2]
[391788783,1760818243548,-500.0,0.00032391,2]
[391788784,1760818243559,-500.0,0.00032391,2]
[391788785,1760818243568,-500.0,0.00032391,2]
[391788786,1760818243577,-500.0,0.00032391,2]
[391788788,1760818243586,-503.41070129,0.00032391,2]
[391788790,1760818243596,-500.0,0.00032391,2]
[391788792,1760818243605,-500.0,0.00032391,2]
[391788794,1760818243614,-529.55372286,0.00032391,2]
[391788796,1760818243624,-500.0,0.00032391,2]
[391788798,1760818243633,-500.88226977,0.00032391,2]
[391788800,1760818243642,-500.0,0.00032391,2]
[391788802,1760818243651,-500.0,0.00032391,2]
[391788804,1760818243660,-498.22386115,0.00032391,2]
[391788806,1760818243669,-500.0,0.00032391,2]
[391788808,1760818243678,-500.0,0.00032391,2]
[391788810,1760818243687,-500.0,0.00032391,2]
[391788812,1760818243696,-500.0,0.00032391,2]
[391788814,1760818243705,-500.0,0.00032391,2]
[391788816,1760818243714,-510.24304839,0.00032391,2]
[391788818,1760818243724,-500.0,0.00032391,2]
[391788820,1760818243732,-300.0,0.00032391,2]
[391788822,1760818243741,-405.96075181,0.00032391,2]
[391788823,1760818243750,-506.88801725,0.00032391,2]
[391788824,1760818243759,-500.0,0.00032391,2]
[391788825,1760818243768,-536.09306992,0.00032391,2]
[391788826,1760818243779,-508.21773522,0.00032391,2]
[391788827,1760818243789,-517.0908063,0.00032391,2]
[391788828,1760818243799,-516.18608461,0.00032391,2]
[391788829,1760818243809,-526.53289462,0.00032391,2]
[391788830,1760818243818,-532.09771485,0.00032391,2]
[391788831,1760818243828,-500.0,0.00032391,2]
[391788832,1760818243838,-547.55145028,0.00032391,2]
[391788833,1760818243848,-599.08918639,0.00032391,2]
[391788834,1760818243858,-501.9430129,0.00032391,2]
[391788835,1760818243868,-502.51304598,0.00032391,2]
[391788836,1760818243877,-500.0,0.00032391,2]
[391788837,1760818243887,-500.0,0.00032391,2]
[391788838,1760818243896,-500.0,0.00032391,2]
[391788839,1760818243905,-500.0,0.00032391,2]
[391788840,1760818243914,-500.0,0.00032391,2]
[391788841,1760818243923,-500.0,0.00032391,2]
[391788842,1760818243933,-528.64560873,0.00032391,2]
[391788843,1760818243942,-500.0,0.00032391,2]
[391788844,1760818243951,-500.0,0.00032391,2]
[391788845,1760818243960,-500.0,0.00032391,2]
[391788846,1760818243969,-500.0,0.00032391,2]
[391788847,1760818243979,-500.0,0.00032391,2]
[391788848,1760818243988,-500.0,0.00032391,2]
[391788849,1760818243997,-500.0,0.00032391,2]
[391788850,1760818244007,-500.0,0.00032391,2]
[391788851,1760818244016,-500.0,0.00032391,2]
[391788852,1760818244026,-500.0,0.00032391,2]
[391788853,1760818244036,-500.0,0.00032391,2]
[391788854,1760818244045,-500.0,0.00032391,2]
[391788855,1760818244054,-500.0,0.00032391,2]
[391788856,1760818244064,-507.08130535,0.00032391,2]
[391788857,1760818244073,-500.0,0.00032391,2]
[391788858,1760818244082,-500.0,0.00032391,2]
[391788859,1760818244091,-500.0,0.00032391,2]
[391788860,1760818244101,-500.0,0.00032391,2]
[391788861,1760818244114,-500.0,0.00032391,2]
[391788862,1760818244123,-14764.0110513,0.00032392,2]
[391788863,1760818244133,-325.586238,0.00032392,2]
[391788864,1760818244143,-301728.95230842,0.00032393,2]
[391788865,1760818244152,-151.331448,0.00032393,30]
[391788866,1760818244161,-151.0,0.00032393,30]
[391788867,1760818244171,-189.993206,0.00032393,30]
[391788868,1760818244180,-189.993206,0.00032393,30]
[391788869,1760818244190,-189.993206,0.00032393,30]
[391788870,1760818244199,-189.993206,0.00032393,30]
[391788871,1760818244209,-151.0,0.00032393,30]
[391788872,1760818244218,-151.0,0.00032393,30]
[391788873,1760818244228,-152.005314,0.00032393,30]
[391788874,1760818244238,-151.0,0.00032393,30]
[391788875,1760818244248,-151.0,0.00032393,30]
[391788876,1760818244257,-151.0,0.00032393,30]
[391788877,1760818244270,-151.0,0.00032393,30]
[391788878,1760818244280,-151.0,0.00032393,30]
[391788879,1760818244289,-151.0,0.00032393,30]
[391788880,1760818244298,-151.0,0.00032393,30]
[391788881,1760818244309,-151.849203,0.00032393,30]
[391788882,1760818244319,-152.672908,0.00032393,30]
[391788883,1760818244329,-151.0,0.00032393,30]
[391788884,1760818244338,-151.0,0.00032393,30]
[391788885,1760818244349,-151.0,0.00032393,30]
[391788886,1760818244358,-151.0,0.00032393,30]
[391788887,1760818244368,-236.120052,0.00032393,30]
[391788888,1760818244378,-151.0,0.00032393,30]
[391788889,1760818244387,-151.0,0.00032393,30]
[391788890,1760818244397,-151.0,0.00032393,30]
[391788891,1760818244406,-151.0,0.00032393,30]
[391788892,1760818244415,-151.0,0.00032393,30]
[391788893,1760818244424,-151.0,0.00032393,30]
[391788894,1760818244433,-151.0,0.00032393,30]
[391788895,1760818244443,-152.419978,0.00032393,30]
[391788896,1760818244453,-211.35180766,0.00032393,30]
[391788897,1760818244462,-151.0,0.00032393,30]
[391788898,1760818244471,-151.0,0.00032393,30]
[391788899,1760818244480,-151.0,0.00032393,30]
[391788900,1760818244490,-151.0,0.00032393,30]
[391788901,1760818244499,-151.0,0.00032393,30]
[391788902,1760818244509,-151.0,0.00032393,30]
[391788903,1760818244518,-151.0,0.00032393,30]
[391788904,1760818244528,-151.0,0.00032393,30]
[391788905,1760818244537,-218.040066,0.00032393,30]
[391788906,1760818244546,-218.040066,0.00032393,30]
[391788907,1760818244556,-218.040066,0.00032393,30]
[391788908,1760818244565,-218.040066,0.00032393,30]
[391788909,1760818244575,-151.0,0.00032393,30]
[391788910,1760818244584,-151.0,0.00032393,30]
[391788911,1760818244594,-151.0,0.00032393,30]
[391788912,1760818244603,-151.0,0.00032393,30]
[391788913,1760818244612,-151.0,0.00032393,30]
[391788914,1760818244621,-151.0,0.00032393,30]
[391788915,1760818244631,-814.945592,0.00032393,30]
[391788916,1760818244641,-151.0,0.00032393,30]
[391788917,1760818244651,-151.0,0.00032393,30]
[391788918,1760818244660,-814.945592,0.00032393,30]
[391788919,1760818244671,-151.0,0.00032393,30]
[391788920,1760818244680,-155.275478,0.00032393,30]